fUSD/lending_fUSD_20240826
["ID","MTS","AMOUNT","RATE_DAILY","PERIOD"]
[335996911,1724657337867,500.0,0.00025753,120]
[335996916,1724657338133,500.0,0.00025753,120]
[335996919,1724657338486,500.0,0.00025753,120]
[335996920,1724657338543,500.0,0.00025753,120]
[335996923,1724657338794,500.0,0.00025753,120]
[335996924,1724657338845,212.74088138,0.00025753,120]
[335996926,1724657339090,292.44,0.00025753,120]
[335996933,1724657339898,500.0,0.00025753,120]
[335996937,1724657340148,500.0,0.00025753,120]
[335996940,1724657340410,500.0,0.00025753,120]
[335996941,1724657340676,500.0,0.00025753,120]
[335996944,1724657340949,500.0,0.00025753,120]
[335996947,1724657341220,500.0,0.00025753,120]
[335996950,1724657341389,500.0,0.00025753,120]
[335996951,1724657341499,500.0,0.00025753,120]
[335996954,1724657341644,430.83,0.00025753,120]
[335996955,1724657341790,500.0,0.00025753,120]
[335996958,1724657342036,500.0,0.00025753,120]
[335996961,1724657342315,500.0,0.00025753,120]
[335996964,1724657342597,324.8,0.00025753,120]
[335996973,1724657343420,500.0,0.00025753,120]
[335996978,1724657343720,536.09,0.00025753,120]
[335996979,1724657343773,500.0,0.00025753,120]
[335996981,1724657343893,500.0,0.00025753,120]
[335996984,1724657344049,500.0,0.00025753,120]
[335996986,1724657344142,236.3,0.00025753,120]
[335996987,1724657344350,500.0,0.00025753,120]
[335996989,1724657344602,500.0,0.00025753,120]
[335996990,1724657344646,500.0,0.00025753,120]
[335996992,1724657344858,500.0,0.00025753,120]
[335996994,1724657345132,500.0,0.00025753,120]
[335996996,1724657345401,500.0,0.00025753,120]
[335997005,1724657347782,575.35,0.00025753,120]
[335997021,1724657350724,2348.59,9.876e-05,2]
[335997036,1724657352455,500.0,0.00025753,120]
[335997040,1724657352728,500.0,0.00025753,120]
[335997043,1724657352985,500.0,0.00025753,120]
[335997046,1724657353144,500.0,0.00025753,120]
[335997048,1724657353246,504.30770771,0.00025753,120]
[335997050,1724657353401,649.95295601,0.00025753,120]
[335997061,1724657354551,500.0,0.00025753,120]
[335997064,1724657354836,500.0,0.00025753,120]
[335997067,1724657355110,500.0,0.00025753,120]
[335997069,1724657355386,500.0,0.00025753,120]
[335997071,1724657355804,500.0,0.00025753,120]
[335997073,1724657356074,500.0,0.00025753,120]
[335997078,1724657356809,500.0,0.00025753,120]
[335997080,1724657356952,500.0,0.00025753,120]
[335997081,1724657357112,500.0,0.00025753,120]
[335997083,1724657357218,500.0,0.00025753,120]
[335997084,1724657357484,500.0,0.00025753,120]
[335997087,1724657357818,500.0,0.00025753,120]
[335997088,1724657357859,224.57,0.00025753,120]
[335997089,1724657357901,500.0,0.00025753,120]
[335997091,1724657358176,500.0,0.00025753,120]
[335997094,1724657358816,500.0,0.00025753,120]
[335997096,1724657359117,500.0,0.00025753,120]
[335997098,1724657359398,500.0,0.00025753,120]
[335997100,1724657359850,500.0,0.00025753,120]
[335997101,1724657359961,500.0,0.00025753,120]
[335997103,1724657360293,344.34,0.00025753,120]
[335997117,1724657362974,500.0,0.00025753,120]
[335997118,1724657363264,500.0,0.00025753,120]
[335997119,1724657363526,500.0,0.00025753,120]
[335997120,1724657363794,500.0,0.00025753,120]
[335997121,1724657364055,275.88,0.00025753,120]
[335997133,1724657365004,500.0,0.00025753,120]
[335997136,1724657365300,500.0,0.00025753,120]
[335997140,1724657365589,500.07180476,0.00025753,120]
[335997171,1724657368355,500.0,0.00025753,120]
[335997176,1724657368641,500.0,0.00025753,120]
[335997181,1724657368904,500.0,0.00025753,120]
[335997186,1724657369192,500.0,0.00025753,120]
[335997267,1724657377337,500.0,0.00025753,120]
[335997271,1724657377626,500.0,0.00025753,120]
[335997273,1724657377690,500.0,0.00025753,120]
[335997275,1724657377835,500.0,0.00025753,120]
[335997277,1724657377882,500.0,0.00025753,120]
[335997279,1724657377968,500.0,0.00025753,120]
[335997282,1724657378139,500.0,0.00025753,120]
[335997283,1724657378187,500.0,0.00025753,120]
[335997284,1724657378255,500.0,0.00025753,120]
[335997287,1724657378455,192.7,0.00025753,120]
[335997288,1724657378522,500.0,0.00025753,120]
[335997303,1724657381832,500.0,0.00025753,120]
[335997306,1724657382225,500.0,0.00025753,120]
[335997308,1724657382498,500.0,0.00025753,120]
[335997312,1724657382952,556.79243242,0.00025753,120]
[335997318,1724657385074,500.0,0.00025753,120]
[335997319,1724657385342,500.0,0.00025753,120]
[335997320,1724657385635,500.0,0.00025753,120]
[335997321,1724657385893,500.0,0.00025753,120]
[335997327,1724657390685,500.0,0.00025753,120]
[335997329,1724657390970,500.0,0.00025753,120]
[335997331,1724657391236,500.0,0.00025753,120]
[335997333,1724657391504,293.22,0.00025753,120]
[335997335,1724657391855,500.0,0.00025753,120]
[335997337,1724657392106,500.0,0.00025753,120]
[335997339,1724657392385,500.0,0.00025753,120]
[335997341,1724657392668,503.25092609,0.00025753,120]
[335997351,1724657394932,619.05,0.00025753,120]
[335997354,1724657395207,619.05,0.00025753,120]
[335997356,1724657395315,196.19980652,0.00025753,120]
[335997361,1724657395607,619.05,0.00025753,120]
[335997362,1724657395870,619.05,0.00025753,120]
[335997367,1724657396142,619.05,0.00025753,120]
[335997370,1724657396446,619.05,0.00025753,120]
[335997372,1724657396706,619.05,0.00025753,120]
[335997374,1724657396992,619.05,0.00025753,120]
[335997376,1724657397232,619.05,0.00025753,120]
[335997378,1724657397491,619.05,0.00025753,120]
[335997380,1724657397749,619.05,0.00025753,120]
[335997381,1724657398008,619.05,0.00025753,120]
[335997382,1724657398084,500.0,0.00025753,120]
[335997383,1724657398343,619.05,0.00025753,120]
[335997384,1724657398396,500.0,0.00025753,120]
[335997385,1724657398642,619.05,0.00025753,120]
[335997386,1724657398691,500.0,0.00025753,120]
[335997387,1724657398905,619.05,0.00025753,120]
[335997388,1724657398980,500.0,0.00025753,120]
[335997390,1724657399506,619.05,0.00025753,120]
[335997392,1724657399767,619.05,0.00025753,120]
[335997394,1724657400025,619.05,0.00025753,120]
[335997396,1724657400297,619.05,0.00025753,120]
[335997398,1724657400580,619.05,0.00025753,120]
[335997401,1724657401039,619.05,0.00025753,120]
[335997402,1724657401155,619.05,0.00025753,120]
[335997404,1724657401431,619.05,0.00025753,120]
[335997407,1724657401799,619.2240368,0.00025753,120]
[335997415,1724657403268,500.0,0.00025753,120]
[335997417,1724657403576,500.0,0.00025753,120]
[335997420,1724657404066,500.0,0.00025753,120]
[335997422,1724657404400,500.0,0.00025753,120]
[335997424,1724657404718,500.0,0.00025753,120]
[335997426,1724657405032,503.54144653,0.00025753,120]
[335997440,1724657407936,500.0,0.00025753,120]
[335997441,1724657408211,500.0,0.00025753,120]
[335997445,1724657408486,500.0,0.00025753,120]
[335997447,1724657408822,392.76,0.00025753,120]
[335997495,1724657413556,500.0,0.00025753,120]
[335997499,1724657413833,500.0,0.00025753,120]
[335997502,1724657414088,500.0,0.00025753,120]
[335997506,1724657414348,500.0,0.00025753,120]
[335997510,1724657414641,500.0,0.00025753,120]
[335997513,1724657414878,500.0,0.00025753,120]
[335997514,1724657414922,500.0,0.00025753,120]
[335997517,1724657415165,349.45,0.00025753,120]
[335997519,1724657415211,500.0,0.00025753,120]
[335997522,1724657415415,311.72329983,0.00025753,120]
[335997523,1724657415476,500.0,0.00025753,120]
[335997526,1724657415662,500.0,0.00025753,120]
[335997527,1724657415745,500.0,0.00025753,120]
[335997529,1724657415836,500.0,0.00025753,120]
[335997531,1724657415933,500.0,0.00025753,120]
[335997532,1724657416056,500.0,0.00025753,120]
[335997533,1724657416125,500.0,0.00025753,120]
[335997535,1724657416203,503.87067616,0.00025753,120]
[335997536,1724657416331,500.0,0.00025753,120]
[335997537,1724657416429,500.0,0.00025753,120]
[335997539,1724657416593,500.0,0.00025753,120]
[335997541,1724657416721,500.0,0.00025753,120]
[335997542,1724657416850,500.0,0.00025753,120]
[335997543,1724657416997,500.0,0.00025753,120]
[335997544,1724657417164,500.0,0.00025753,120]
[335997545,1724657417276,500.0,0.00025753,120]
[335997546,1724657417429,500.0,0.00025753,120]
[335997547,1724657417563,500.0,0.00025753,120]
[335997548,1724657417671,500.0,0.00025753,120]
[335997549,1724657417834,500.0,0.00025753,120]
[335997550,1724657417960,500.0,0.00025753,120]
[335997553,1724657418256,502.08822582,0.00025753,120]
[335997554,1724657418300,320.04,0.00025753,120]
[335997555,1724657418408,500.0,0.00025753,120]
[335997558,1724657418680,500.0,0.00025753,120]
[335997561,1724657418975,500.0,0.00025753,120]
[335997563,1724657419073,1500.0,0.00025753,120]
[335997566,1724657419255,500.0,0.00025753,120]
[335997569,1724657419343,1500.0,0.00025753,120]
[335997571,1724657419533,591.77679737,0.00025753,120]
[335997574,1724657419624,1500.0,0.00025753,120]
[335997579,1724657419880,1500.0,0.00025753,120]
[335997580,1724657420166,1500.0,0.00025753,120]
[335997586,1724657420436,1500.0,0.00025753,120]
[335997596,1724657420831,1500.0,0.00025753,120]
[335997598,1724657420876,505.40434262,0.00025753,120]
[335997601,1724657421111,1500.0,0.00025753,120]
[335997610,1724657421463,1500.0,0.00025753,120]
[335997615,1724657421690,1500.0,0.00025753,120]
[335997621,1724657421976,1500.0,0.00025753,120]
[335997629,1724657422259,1500.0,0.00025753,120]
[335997638,1724657422597,1500.0,0.00025753,120]
[335997644,1724657422870,1500.0,0.00025753,120]
[335997646,1724657422915,500.0,0.00025753,120]
[335997653,1724657423154,1500.0,0.00025753,120]
[335997655,1724657423203,500.0,0.00025753,120]
[335997660,1724657423432,1500.0,0.00025753,120]
[335997662,1724657423476,500.0,0.00025753,120]
[335997666,1724657423696,1500.0,0.00025753,120]
[335997681,1724657424326,255.31777457,0.00025753,120]
[335997702,1724657425457,502.59932023,0.00025753,120]
[335997713,1724657426933,500.0,0.00025753,120]
[335997715,1724657427242,500.0,0.00025753,120]
[335997716,1724657427523,500.0,0.00025753,120]
[335997718,1724657427579,501.8706034,0.00025753,120]
[335997721,1724657427936,500.0,0.00025753,120]
[335997723,1724657428121,500.0,0.00025753,120]
[335997726,1724657428206,487.33742115,0.00025753,120]
[335997727,1724657428426,500.0,0.00025753,120]
[335997730,1724657428703,500.0,0.00025753,120]
[335997733,1724657428964,179.00465523,0.00025753,120]
[335997737,1724657429466,500.0,0.00025753,120]
[335997740,1724657429705,500.0,0.00025753,120]
[335997741,1724657429748,500.0,0.00025753,120]
[335997744,1724657430013,500.0,0.00025753,120]
[335997745,1724657430154,285.7861829,0.00025753,120]
[335997747,1724657430291,399.75844433,0.00025753,120]
[335997748,1724657430394,500.0,0.00025753,120]
[335997752,1724657430662,500.0,0.00025753,120]
[335997754,1724657430936,500.0,0.00025753,120]
[335997756,1724657431021,500.0,0.00025753,120]
[335997757,1724657431097,500.0,9.85e-05,3]
[335997758,1724657431200,500.0,0.00025753,120]
[335997759,1724657431326,500.0,0.00025753,120]
[335997764,1724657431637,277.61024649,0.00025753,120]
[335997765,1724657431691,501.90103424,0.00025753,120]
[335997767,1724657431736,500.0,0.00025753,120]
[335997786,1724657431936,500.0,0.00025753,120]
[335997788,1724657431981,-286.18192272,0.000101,3]
[335997789,1724657431993,-413.81807728,0.000101,3]
[335997791,1724657432003,-1000.0,0.000102,3]
[335997792,1724657432013,-1300.0,0.000103,3]
[335997793,1724657432022,-210.52,0.00010399,2]
[335997794,1724657432032,-99.64192272,0.000104,3]
[335997796,1724657432044,-100.35807728,0.000104,3]
[335997797,1724657432054,-459.17,0.00010469,2]
[335997798,1724657432219,-200.0,0.000105,3]
[335997799,1724657432233,-155.0,0.00010505,2]
[335997800,1724657432245,-300.0,0.00010565,2]
[335997802,1724657432255,-300.0,0.00010565,2]
[335997803,1724657432265,-963.55561447,0.00010566,2]
[335997804,1724657432274,-963.55561447,0.00010566,2]
[335997805,1724657432283,-283.48,0.00010566,2]
[335997806,1724657432293,-200.0,0.000106,3]
[335997807,1724657432303,-150.0,0.00010689,2]
[335997809,1724657432314,-11037.1221012,0.0001069,2]
[335997810,1724657432327,-1172.4269988,0.0001069,2]
[335997811,1724657432336,-1127.5730012,0.0001069,2]
[335997812,1724657432357,-4859.2062988,0.0001069,2]
[335997813,1724657432367,-1000.0,0.0001069,2]
[335997815,1724657432377,-150.99,0.0001069,2]
[335997816,1724657432386,-499.99,0.0001069,2]
[335997817,1724657432395,-2500.0,0.0001069,2]
[335997818,1724657432406,-3786.0828,0.0001069,2]
[335997819,1724657432416,-200.0,0.000107,3]
[335997820,1724657432427,-22606.56357215,0.0001078,2]
[335997821,1724657432439,-836.89298034,0.0001078,2]
[335997822,1724657432466,-360.246502,0.0001078,2]
[335997824,1724657432478,-15563.84535004,0.0001078,2]
[335997826,1724657432489,-5151.0318562,0.0001078,2]
[335997828,1724657432500,-734.6075021,0.0001078,2]
[335997831,1724657432512,-300.75376989,0.0001078,2]
[335997834,1724657432553,500.0,0.00025753,120]
[335997836,1724657432566,-8959.31889589,0.0001078,2]
[335997839,1724657432581,-903.92013879,0.0001078,2]
[335997842,1724657432592,-7226.18825408,0.0001078,2]
[335997844,1724657432633,281.17710108,0.00025753,120]
[335997845,1724657432682,500.0,0.00025753,120]
[335997846,1724657432728,500.0,0.00025753,120]
[335997848,1724657432800,500.0,0.00025753,120]
[335997850,1724657433012,500.0,0.00025753,120]
[335997852,1724657433060,500.0,0.00025753,120]
[335997854,1724657433292,500.0,0.00025753,120]
[335997856,1724657433342,520.69,0.00025753,120]
[335997857,1724657433422,522.95,0.00025753,120]
[335997859,1724657433561,330.4297331,0.00025753,120]
[335997861,1724657433697,522.95,0.00025753,120]
[335997863,1724657433823,500.0,0.00025753,120]
[335997866,1724657433974,522.95,0.00025753,120]
[335997867,1724657434088,500.0,0.00025753,120]
[335997868,1724657434252,522.95,0.00025753,120]
[335997869,1724657434368,500.0,0.00025753,120]
[335997870,1724657434441,536.66494459,0.00025753,120]
[335997871,1724657434507,522.95,0.00025753,120]
[335997872,1724657434630,500.0,0.00025753,120]
[335997874,1724657434831,522.95,0.00025753,120]
[335997875,1724657434886,500.0,0.00025753,120]
[335997877,1724657435156,500.0,0.00025753,120]
[335997878,1724657435204,522.95,0.00025753,120]
[335997879,1724657435370,500.0,0.00025753,120]
[335997880,1724657435426,522.95,0.00025753,120]
[335997881,1724657435474,500.0,0.00025753,120]
[335997882,1724657435526,500.0,0.00025753,120]
[335997883,1724657435638,500.0,0.00025753,120]
[335997884,1724657435690,522.95,0.00025753,120]
[335997885,1724657435732,374.83,0.00025753,120]
[335997886,1724657435777,500.0,0.00025753,120]
[335997887,1724657435942,522.95,0.00025753,120]
[335997888,1724657435986,500.0,0.00025753,120]
[335997889,1724657436029,500.0,0.00025753,120]
[335997890,1724657436079,500.0,0.00025753,120]
[335997892,1724657436121,500.0,0.00025753,120]
[335997893,1724657436217,522.95,0.00025753,120]
[335997894,1724657436261,500.0,0.00025753,120]
[335997895,1724657436301,505.02924187,0.00025753,120]
[335997896,1724657436358,500.0,0.00025753,120]
[335997898,1724657436405,500.0,0.00025753,120]
[335997899,1724657436472,522.95,0.00025753,120]
[335997901,1724657436520,500.0,0.00025753,120]
[335997902,1724657436627,500.0,0.00025753,120]
[335997903,1724657436676,500.0,0.00025753,120]
[335997905,1724657436753,500.0,0.00025753,120]
[335997906,1724657436806,522.95,0.00025753,120]
[335997907,1724657436908,500.0,0.00025753,120]
[335997908,1724657436962,528.61950668,0.00025753,120]
[335997910,1724657437069,522.95,0.00025753,120]
[335997911,1724657437217,547.73,0.00025753,120]
[335997913,1724657437337,522.95,0.00025753,120]
[335997914,1724657437417,500.0,0.00025753,120]
[335997916,1724657437592,522.95,0.00025753,120]
[335997917,1724657437677,500.0,0.00025753,120]
[335997921,1724657437768,500.0,0.00025753,120]
[335997923,1724657437835,522.95,0.00025753,120]
[335997927,1724657437881,591.30790932,0.00025753,120]
[335997934,1724657437942,500.0,0.00025753,120]
[335997944,1724657438030,500.0,0.00025753,120]
[335997956,1724657438116,522.95,0.00025753,120]
[335997958,1724657438144,-492.40723222,0.0001078,2]
[335997959,1724657438161,-2006.85506001,0.0001078,2]
[335997960,1724657438232,574.62261751,0.00025753,120]
[335997961,1724657438273,-48802.33793023,0.0001078,2]
[335997962,1724657438283,-3740.12,0.00010789,2]
[335997963,1724657438292,-3717.76,0.00010789,2]
[335997964,1724657438302,-11049.013,0.00010789,2]
[335997965,1724657438311,-159407.8843,0.0001079,2]
[335997966,1724657438321,-3047.3481,0.0001079,2]
[335997967,1724657438331,-6604.1805,0.00010799,2]
[335997968,1724657438340,-152.899269,0.00010799,2]
[335997969,1724657438350,-150.689663,0.00010799,2]
[335997970,1724657438359,-150.235221,0.00010799,2]
[335997971,1724657438368,-158.056715,0.00010799,2]
[335997973,1724657438381,-156.013498,0.00010799,2]
[335997974,1724657438390,-152.302034,0.00010799,2]
[335997975,1724657438400,-171.236315,0.00010799,2]
[335997977,1724657438409,-165.220308,0.00010799,2]
[335997978,1724657438419,-153.649658,0.00010799,2]
[335997979,1724657438429,-158.647952,0.00010799,2]
[335997980,1724657438438,-151.538469,0.00010799,2]
[335997982,1724657438448,-151.538469,0.00010799,2]
[335997984,1724657438458,-152.708679,0.00010799,2]
[335997986,1724657438467,-150.181596,0.00010799,2]
[335997988,1724657438478,-152.583042,0.00010799,2]
[335997990,1724657438488,-152.583042,0.00010799,2]
[335997992,1724657438498,-154.861488,0.00010799,2]
[335997994,1724657438507,-153.444186,0.00010799,2]
[335997996,1724657438517,-205.425949,0.00010799,2]
[335997998,1724657438526,-205.425949,0.00010799,2]
[335998000,1724657438536,-196.404617,0.00010799,2]
[335998002,1724657438546,-196.404617,0.00010799,2]
[335998004,1724657438555,-187.752849,0.00010799,2]
[335998006,1724657438565,-187.752849,0.00010799,2]
[335998008,1724657438574,-180.702015,0.00010799,2]
[335998010,1724657438585,-180.702015,0.00010799,2]
[335998012,1724657438594,-174.961292,0.00010799,2]
[335998014,1724657438604,-174.961292,0.00010799,2]
[335998016,1724657438613,-170.290717,0.00010799,2]
[335998018,1724657438623,-170.290717,0.00010799,2]
[335998020,1724657438635,-166.49302,0.00010799,2]
[335998022,1724657438645,-166.49302,0.00010799,2]
[335998024,1724657438655,-163.612407,0.00010799,2]
[335998026,1724657438664,-163.612407,0.00010799,2]
[335998028,1724657438673,-721.0,0.000108,3]
[335998030,1724657438683,-500.0,0.00010889,2]
[335998032,1724657438691,-298.38828726,0.00010889,2]
[335998034,1724657438701,-500.0,0.00010889,2]
[335998036,1724657438711,-445.55619433,0.00010889,2]
[335998038,1724657438719,-500.0,0.00010889,2]
[335998040,1724657438729,-2005.5312,0.0001089,2]
[335998042,1724657438738,-248.50008943,0.00010895,2]
[335998043,1724657438747,-500.0,0.00010895,2]
[335998045,1724657438756,-541.87658881,0.00010895,2]
[335998047,1724657438765,-500.0,0.00010895,2]
[335998049,1724657438774,-343.03703186,0.00010895,2]
[335998051,1724657438783,-500.0,0.00010895,2]
[335998053,1724657438793,-262.38825019,0.00010895,2]
[335998055,1724657438803,-500.0,0.00010895,2]
[335998058,1724657438815,-504.52651191,0.00010895,2]
[335998060,1724657438823,-500.0,0.00010895,2]
[335998062,1724657438833,-500.0,0.00010895,2]
[335998064,1724657438842,-500.0,0.00010895,2]
[335998065,1724657438851,-336.44,0.00010895,2]
[335998067,1724657438860,-528.34269695,0.00010895,2]
[335998069,1724657438870,-500.0,0.00010895,2]
[335998071,1724657438881,-247.06014866,0.00010899,2]
[335998073,1724657438890,-500.0,0.00010899,2]
[335998075,1724657438900,-275.2181554,0.00010899,2]
[335998077,1724657438909,-563.39807013,0.00010899,2]
[335998089,1724657438919,-505.13204081,0.00010899,2]
[335998094,1724657439061,-500.0,0.00010899,2]
[335998096,1724657439071,-490.59148359,0.00010899,2]
[335998098,1724657439081,-500.0,0.00010899,2]
[335998100,1724657439090,-500.0,0.00010899,2]
[335998102,1724657439099,-614.81,0.00010899,2]
[335998104,1724657439109,-500.0,0.00010899,2]
[335998106,1724657439118,-500.0,0.00010899,2]
[335998108,1724657439129,-500.0,0.00010899,2]
[335998110,1724657439139,-500.0,0.00010899,2]
[335998112,1724657439149,-500.0,0.00010899,2]
[335998114,1724657439161,-500.0,0.00010899,2]
[335998116,1724657439170,-500.0,0.00010899,2]
[335998117,1724657439179,-500.0,0.00010899,2]
[335998119,1724657439189,-500.0,0.00010899,2]
[335998121,1724657439199,-500.0,0.00010899,2]
[335998123,1724657439208,-366.45,0.00010899,2]
[335998125,1724657439217,-500.0,0.00010899,2]
[335998127,1724657439228,-500.0,0.00010899,2]
[335998129,1724657439237,-500.0,0.00010899,2]
[335998131,1724657439247,-500.0,0.00010899,2]
[335998133,1724657439256,-500.0,0.00010899,2]
[335998135,1724657439265,-500.0,0.00010899,2]
[335998137,1724657439275,-267.33764906,0.00010899,2]
[335998139,1724657439284,-267.33764906,0.00010899,2]
[335998141,1724657439294,-267.33764906,0.00010899,2]
[335998143,1724657439303,-267.33764906,0.00010899,2]
[335998145,1724657439312,-267.33764906,0.00010899,2]
[335998147,1724657439322,-267.33764906,0.00010899,2]
[335998149,1724657439331,-267.33764906,0.00010899,2]
[335998151,1724657439340,-267.33764906,0.00010899,2]
[335998153,1724657439350,-267.33764906,0.00010899,2]
[335998155,1724657439359,-267.33764906,0.000109,2]
[335998157,1724657439368,-161.40044995,0.000109,2]
[335998159,1724657439379,-500.0,0.00010912,2]
[335998161,1724657439388,-200.0,0.00010959,2]
[335998163,1724657439398,-157.43,0.00010959,2]
[335998165,1724657439408,-500.0,0.00010981,2]
[335998167,1724657439417,-151.538469,0.00010989,2]
[335998169,1724657439427,-152.583042,0.00010989,2]
[335998171,1724657439440,-154.861488,0.00010989,2]
[335998173,1724657439450,-153.444186,0.00010989,2]
[335998175,1724657439459,-205.425949,0.00010989,2]
[335998177,1724657439469,-196.404617,0.00010989,2]
[335998179,1724657439478,-187.752849,0.00010989,2]
[335998181,1724657439488,-180.702015,0.00010989,2]
[335998183,1724657439498,-174.961292,0.00010989,2]
[335998185,1724657439507,-170.290717,0.00010989,2]
[335998187,1724657439517,-166.49302,0.00010989,2]
[335998189,1724657439527,-163.612407,0.00010989,2]
[335998191,1724657439536,-437.64808088,0.0001099,2]
[335998193,1724657439546,-500.0,0.0001099,2]
[335998195,1724657439556,-3546.20003027,0.00010991,2]
[335998197,1724657439565,-29896.0279122,0.00010992,2]
[335998199,1724657439575,-2354.8316577,0.00010992,2]
[335998201,1724657439584,-733.433719,0.00010992,2]
[335998203,1724657439594,-151.538469,0.00010995,2]
[335998205,1724657439604,-152.583042,0.00010995,2]
[335998207,1724657439614,-205.425949,0.00010995,2]
[335998209,1724657439623,-196.404617,0.00010995,2]
[335998211,1724657439634,-187.752849,0.00010995,2]
[335998213,1724657439644,-180.702015,0.00010995,2]
[335998215,1724657439654,-174.961292,0.00010995,2]
[335998217,1724657439664,-170.290717,0.00010995,2]
[335998219,1724657439674,-166.49302,0.00010995,2]
[335998220,1724657439685,-163.612407,0.00010995,2]
[335998221,1724657439696,-256.41866851,0.00010997,2]
[335998222,1724657439707,-619.70984602,0.00010997,2]
[335998223,1724657439716,-500.0,0.00010997,2]
[335998224,1724657439726,-500.0,0.00010997,2]
[335998225,1724657439735,-500.0,0.00010997,2]
[335998226,1724657439744,-500.0,0.00010997,2]
[335998227,1724657439755,-500.0,0.00010997,2]
[335998228,1724657439766,-500.0,0.00010997,2]
[335998229,1724657439777,-500.0,0.00010997,2]
[335998230,1724657439787,-160.77679114,0.00010997,2]
[335998231,1724657439798,-150.235221,0.00010997,2]
[335998232,1724657439808,-158.056715,0.00010997,2]
[335998233,1724657439819,-156.013498,0.00010997,2]
[335998234,1724657439831,-156.013498,0.00010997,2]
[335998235,1724657439842,-152.302034,0.00010997,2]
[335998236,1724657439853,-152.302034,0.00010997,2]
[335998237,1724657439864,-165.220308,0.00010997,2]
[335998238,1724657439875,-153.649658,0.00010997,2]
[335998239,1724657439885,-158.647952,0.00010997,2]
[335998240,1724657439896,-151.538469,0.00010997,2]
[335998241,1724657439906,-151.538469,0.00010997,2]
[335998242,1724657439916,-151.538469,0.00010997,2]
[335998244,1724657439926,-151.538469,0.00010997,2]
[335998246,1724657439935,-151.538469,0.00010997,2]
[335998248,1724657439947,-152.583042,0.00010997,2]
[335998250,1724657439956,-152.583042,0.00010997,2]
[335998253,1724657439966,-152.583042,0.00010997,2]
[335998256,1724657439976,-152.583042,0.00010997,2]
[335998260,1724657439986,-152.583042,0.00010997,2]
[335998262,1724657439996,-154.861488,0.00010997,2]
[335998265,1724657440006,-154.861488,0.00010997,2]
[335998268,1724657440016,-153.444186,0.00010997,2]
[335998271,1724657440026,-153.444186,0.00010997,2]
[335998274,1724657440036,-153.444186,0.00010997,2]
[335998277,1724657440045,-205.425949,0.00010997,2]
[335998280,1724657440055,-205.425949,0.00010997,2]
[335998283,1724657440064,-205.425949,0.00010997,2]
[335998286,1724657440074,-205.425949,0.00010997,2]